Cogmind - Beta 17.1 @@@ ROGUE MODE // 2026.09.15 @ 21:53:47 Player: the Result: Destroyed by as-39975 with Assembled Heavy Rifle Performance ------------- Evolutions (0) 0 Regions Visited (2) 400 Robots Destroyed (26) 130 Value Destroyed (425) 425 Prototype IDs (0) 0 Alien Tech Used (0) 0 Bonus (0) 0 TOTAL SCORE: 955 Bonus ------- None Cogmind --------- Core Integrity 0/250 Matter 200/300 Energy 78/100 System Corruption 2% Temperature Warm (190) Movement Core (50) Location -10/Mines Parts ------- > --- POWER (1) -------- (None) > --- PROPULSION (2) --- (None) > --- UTILITY (2) ------ (None) > --- WEAPON (2) ------- (None) > --- INVENTORY (5) ---- Improved Heat Sink Huge Storage Unit Hacking Suite Hacking Suite Assault Rifle Peak State ------------ > --- POWER ------------ Light Nuclear Core > --- PROPULSION ------- Light Treads Light Treads > --- UTILITY ---------- Large Storage Unit Seismic Detector > --- WEAPON ----------- Particle Cannon Particle Cannon > --- INVENTORY -------- Ion Engine Improved Heat Sink Huge Storage Unit Hardened Light Armor Plating Hardened Light Armor Plating Hacking Suite Hacking Suite Particle Cannon Assault Rifle Assault Rifle Datajack [Rating: 13] Favorites ----------- Power Ion Engine Engine Ion Engine Power Core Light Nuclear Core Propulsion Light Treads Treads Light Treads Hover Unit Hover Unit Utility Large Storage Unit Device Seismic Detector Storage Large Storage Unit Protection Hardened Light Armor Plating Weapon Assault Rifle Energy Cannon Particle Cannon Ballistic Gun Assault Rifle Build | -11 -10 -10 ------- Run | Yrd Mat Min Slots Evolved . | . . . Power . | . . . Propulsion . | . . . Utility . | . . . Weapon . | . . . Parts Attached 24 | 7 8 9 Power 5 | 1 2 2 Engine 4 | 1 2 1 Core 1 | . . 1 Reactor . | . . . Propulsion 5 | 2 1 2 Treads 4 | 2 . 2 Leg . | . . . Wheel . | . . . Hover 1 | . 1 . Flight . | . . . Utility 6 | 2 3 1 Device 2 | 1 1 . Storage 2 | 1 1 . Processor . | . . . Hackware . | . . . Protection 2 | . 1 1 Artifact . | . . . Weapon 8 | 2 2 4 Energy Gun . | . . . Energy Cannon 3 | . . 3 Ballistic Gun 5 | 2 2 1 Ballistic Cannon . | . . . Launcher . | . . . Special Weapon . | . . . Impact Weapon . | . . . Slashing Weapon . | . . . Piercing Weapon . | . . . Special Melee Weapon . | . . . Unidentified Prototypes . | . . . Parts Lost 9 | . . 9 Power 1 | . . 1 Propulsion 4 | . . 4 Utility . | . . . Weapon 4 | . . 4 Highest Loss Streak 8 | . . 8 To Critical Strikes . | . . . Average Backups 11 | 2 10 13 Power 1 | . 1 . Propulsion . | . . 1 Utility 4 | . 4 5 Weapon 3 | . 3 4 Tool/Special . | . . . Unused Backups 9 | . 2 7 Power 1 | . 1 . Propulsion . | . . . Utility 5 | . . 5 Weapon 2 | . 1 1 Tool/Special 1 | . . 1 Average Slot Usage (%) 99 | . 99 97 Engine 10 | . 13 1 Core 3 | . . 11 Treads 27 | . 27 26 Device 11 | . 13 5 Storage 13 | . 14 13 Protection 2 | . . 8 Ballistic Gun 27 | . 28 26 Peak Build Rating 13 | 7 9 13 Average Rating 8 | 4 8 11 On Entrance 5 | . 7 9 Avg Prop Armor Cover (%) . | . . . Naked Turns 14 | . . 14 Heaviest Build 34 | 13 30 34 Greatest Support 40 | 40 40 40 Greatest Overweight (x) 1 | . 1 . Average Overweight (x) . | . . . Largest Inventory Capacity 15 | 8 15 15 Average Capacity 13 | 6 13 14 Most Carried 15 | 5 15 15 Average Carried 11 | 2 10 13 Final Capacity 15 | 8 15 5 Final Carried 15 | 2 15 5 Class Distribution -------------------- 100% | Mutant Dominant Class ---------------- Mutant | -10/Materials Mutant | -10/Mines Resources | -11 -10 -10 ----------- Run | Yrd Mat Min Matter Collected 856 | 288 386 182 Remotely . | . . . Salvage Created 690 | 174 282 234 Parts 53 | 9 21 23 Haulers Intercepted 1 | . 1 . Recyclers Shooed . | . . . Parts Field Recycled . | . . . Retrieved Matter . | . . . Parts Self-Destructed . | . . . Prevented . | . . . Parts Restored . | . . . Kills | -11 -10 -10 ------- Run | Yrd Mat Min Combat Hostiles Destroyed 16 | . 5 11 Guns 15 | . 5 10 Cannons 1 | . . 1 Classes Destroyed 8 | 2 5 1 Tunneler 4 | 4 . . Hauler 1 | . 1 . Recycler 1 | 1 . . Operator 2 | . 2 . Watcher 2 | . 2 . Swarmer 11 | . 3 8 Grunt 4 | . 2 2 Demolisher 1 | . . 1 Best Kill Streak 3 | 2 3 3 Combat Bots Only 3 | . 3 3 Max Kills in Single Turn 1 | 1 1 1 Gunslinging . | . . . Exploded . | . . . Melee . | . . . Uniques/NPCs Destroyed . | . . . Combat | -11 -10 -10 -------- Run | Yrd Mat Min Hostile Shots Fired 137 | . 39 98 Missed 42 | . 16 26 Hits 95 | . 23 72 Projectile 95 | . 23 72 AOE 26 | . . 26 Critical Strikes 3 | . 1 2 Damage Taken 1604 | . 248 1356 Core 265 | . 43 222 Absorbed by Shields . | . . . Core Remaining (%) 100 | 100 . . Volleys Fired 91 | 14 39 38 Largest 2 | 2 2 2 Hottest 136 | 40 40 136 Shots Fired 181 | 28 77 76 Gun 169 | 28 77 64 Cannon 12 | . . 12 Launcher . | . . . Special . | . . . Kinetic 169 | 28 77 64 Thermal 12 | . . 12 Explosive . | . . . Electromagnetic . | . . . Robot Hit Streak 15 | 7 15 11 Robot Miss Streak 9 | 9 6 6 Penetration Max . | . . . Secondary Targets 6 | . 2 4 Max Gunslinging Chain 1 | . 1 1 Shots Hit Robots 100 | 16 46 38 Core Hits 40 | 8 17 15 Critical Kills . | . . . Critical Parts Destroyed . | . . . Critical Strikes . | . . . Melee Attacks . | . . . Impact . | . . . Slashing . | . . . Piercing . | . . . Sneak Attacks . | . . . Combat Hostiles . | . . . Follow-up Attacks . | . . . Damage Inflicted 1327 | 132 644 551 Guns 1106 | 130 609 367 Cannons 184 | . . 184 Explosions . | . . . Melee . | . . . Ramming 37 | 2 35 . Kinetic 1106 | 130 609 367 Thermal 184 | . . 184 Explosive . | . . . Electromagnetic . | . . . Impact . | . . . Slashing . | . . . Piercing . | . . . Highest Corruption 2 | . 2 2 Average Corruption 2 | . 2 2 Corruption Purged . | . . . Corruption Blocked . | . . . Effects 16 | . 9 7 Message Errors 2 | . 1 1 Matter Fused 3 | . 2 1 Heat Flow Errors 3 | . 1 2 Energy Discharges 4 | . 2 2 Data Loss (minor) 1 | . 1 . Data Loss (major) 1 | . 1 . Alerts 1 | . . 1 Weapon Failures 1 | . 1 . Overload Shots . | . . . Overflow Damage . | . . . Projectiles . | . . . Explosions . | . . . Melee . | . . . Knockbacks . | . . . Impact . | . . . Kinetic . | . . . Secondary . | . . . Self-Inflicted Damage . | . . . Shots . | . . . Rammed 8 | 1 6 1 Targets Rammed 8 | 1 6 1 Kicked . | . . . Crushed . | . . . Highest Temperature 390 | . 118 390 Average Temperature 130 | . 27 155 Received Heat Transfer 138 | . 78 60 Effects 2 | . . 2 Energy Bleed 1 | . . 1 Damage (minor) 1 | . . 1 Siege Activations . | . . . Martial Activations . | . . . Shielding Activations . | . . . Robots Disrupted . | . . . Combat Hostiles . | . . . Robots Corrupted . | . . . Combat Hostiles . | . . . Parts Fried . | . . . Impact Corruptions . | . . . Robots Melted . | . . . Combat Hostiles . | . . . Parts Melted 1 | . . 1 Heat Transferred 333 | . . 333 Parts Sabotaged . | . . . Parts Stolen . | . . . Parts Stripped . | . . . Power Chain Reactions . | . . . Alert | -11 -10 -10 ------- Run | Yrd Mat Min Maximum Alert Level . | . . . Low Security (%) 100 | 100 100 100 Level 1 . | . . . Level 2 . | . . . Level 3 . | . . . Level 4 . | . . . Level 5 . | . . . High Security . | . . . Max Security . | . . . Peak Influence 90 | 10 60 90 Initial . | . . . Average 15 | 1 8 34 Influence Increases 508 | 25 208 275 Destroy 0b10 Robot/C 320 | . 100 220 Destroy 0b10 Robot/NC 50 | 25 25 . Destroy Leader 66 | . 26 40 Successful Hack 26 | . 26 . Select Force Hacks 30 | . 30 . Destroy Structure 1 | . 1 . Lose Combat Pursuer 15 | . . 15 Influence Decreases 506 | 25 208 273 Time Decay 486 | 25 208 253 Lost Part 20 | . . 20 Squads Dispatched 2 | . 2 . Investigation 1 | . 1 . Extermination . | . . . Reinforcement 1 | . 1 . Assault . | . . . Garrison . | . . . Intercept . | . . . Searches Triggered . | . . . Construction Impeded . | . . . Haulers Reinforced . | . . . Active Scanning Responses . | . . . Cargo Convoy Interrupts . | . . . Stealth | -11 -10 -10 --------- Run | Yrd Mat Min Distress Signals 1 | . 1 . Communications Jammed . | . . . Distress Signals . | . . . Times Spotted 31 | . 11 20 Peak Tracking Total 11 | . 4 11 Tactical Retreats 1 | . . 1 Traps | -11 -10 -10 ------- Run | Yrd Mat Min Traps Triggered 3 | . 3 . Indirectly . | . . . Trap Hack Attempts . | . . . Triggered . | . . . Disarmed . | . . . Reprogrammed . | . . . Reused . | . . . Traps Extracted . | . . . Installed . | . . . Triggered . | . . . Machines | -11 -10 -10 ---------- Run | Yrd Mat Min Machines Disabled . | . . . Max in Single Turn . | . . . Machines Repaired . | . . . Machines Dismantled . | . . . Machines Sabotaged . | . . . Overloaded Fab Kills . | . . . Hacking | -11 -10 -10 --------- Run | Yrd Mat Min Machines Accessed 8 | . 8 . Terminals 7 | . 7 . Fabricators . | . . . Repair Stations . | . . . Recycling Units 1 | . 1 . Scanalyzers . | . . . Garrison Access . | . . . Total Hacks 11 | . 11 . Successful 7 | . 7 . Failed 4 | . 4 . Catastrophic 2 | . 2 . Database Lockouts . | . . . Manual 11 | . 11 . Terminals 10 | . 10 . Fabricators . | . . . Repair Stations . | . . . Recycling Units 1 | . 1 . Scanalyzers . | . . . Garrison Access . | . . . Terminal Hacks . | . . . Fabricator Hacks . | . . . Repair Station Hacks . | . . . Recycling Unit Hacks . | . . . Scanalyzer . | . . . Garrison Access Hacks . | . . . Unauthorized Hacks 7 | . 7 . Terminals 6 | . 6 . Skim 6 | . 6 . Fabricators . | . . . Repair Stations . | . . . Recycling Units 1 | . 1 . Tunnel 1 | . 1 . Scanalyzers . | . . . Garrison Access . | . . . Data Cores Recovered 1 | . 1 . Used . | . . . Hacking Detections 3 | . 3 . Full Trace Events 1 | . 1 . Feedback Events . | . . . Feedback Blocked . | . . . Robot Schematics Acquired . | . . . Robots Built . | . . . Authchips . | . . . Time . | . . . Total Robot Build Rating . | . . . Part Schematics Acquired . | . . . Parts Built . | . . . Authchips . | . . . Time . | . . . Total Part Build Rating . | . . . Part Studies Acquired . | . . . Parts Repaired . | . . . Time . | . . . Parts Recycled . | . . . Recycled Matter . | . . . Retrieved Matter . | . . . Retrieved Components . | . . . Parts Scanalyzed . | . . . Part Schematics Acquired . | . . . Parts Damaged . | . . . Bothacking | -11 -10 -10 ------------ Run | Yrd Mat Min Used RIF Installer . | . . . Robots Hacked . | . . . Non-combat . | . . . Combat . | . . . Robot Hacks Applied . | . . . Relay Couplers Released . | . . . Fabnet Peak Effective % . | . . . Robots Rewired . | . . . Allies Hacked . | . . . Hacks Repelled . | . . . Allies | -11 -10 -10 -------- Run | Yrd Mat Min Total Allies . | . . . Largest Group . | . . . Highest-Rated Group . | . . . Highest-Rated Ally . | . . . Total Orders . | . . . Ally Attacks . | . . . Total Damage . | . . . Kills . | . . . Allies Corrupted . | . . . Allies Melted . | . . . Intel | -11 -10 -10 ------- Run | Yrd Mat Min Active Infowar (turns) 1805 | 5 1525 275 Seismic 1805 | 5 1525 275 Robot Analysis Total . | . . . Derelict Logs Recovered 1 | . . 1 Drone Launches . | . . . Drone Recoveries . | . . . Exploration | -11 -10 -10 ------------- Run | Yrd Mat Min Turns Passed 2357 | 100 1542 715 Spaces Moved 1171 | 53 735 383 Core 62 | 34 . 28 Treads 1109 | 19 735 355 Legs . | . . . Wheels . | . . . Hover . | . . . Flight . | . . . Fastest Speed 50 | 50 160 50 Average Speed 154 | 89 160 151 Slowest Speed 240 | 160 240 160 Overloaded Moves . | . . . Propulsion Burnouts . | . . . Robots Hopped . | . . . Potential Cave-ins . | . . . Cave-ins Triggered . | . . . Exploration Rate (%) 55 | 4 93 69 Regions Visited 2 Branch Regions 1 Pre-discovered Areas 2 | . 2 . Known Exits Taken . | . . . Unknown Exits Taken 2 | 1 1 . Scrap Searched . | . . . Spaces Dug . | . . . Terrain Destroyed 1 | . . 1 Melee . | . . . Projectile 1 | . . 1 AOE . | . . . Terrain Rammed . | . . . Walls Destroyed . | . . . Machines Disabled . | . . . Actions | -11 -10 -10 --------- Run | Yrd Mat Min Total 1538 | 82 1019 437 Wait 194 | 1 192 1 Move 1170 | 53 734 383 Hop . | . . . Pick Up 28 | 7 21 . Fast Attach 7 | 2 5 . Attach 14 | 5 2 7 Detach 2 | . 2 . Swap 14 | . 8 6 Drop 11 | . 10 1 Fire 91 | 14 39 38 Melee . | . . . Ram . | . . . Kick . | . . . Crush 7 | . 6 1 Escape Stasis . | . . . Rewire . | . . . Trap . | . . . Miscellaneous . | . . . Route ------- -11/Scrapyard -10/Materials (discovered 5 exits: *Mat x3 / [*Min] / Sub) -10/Mines (discovered 2 exits: *Mat / *Sub) History --------- Turn | Location | Event 10 | -11/Scrapyard | Discovered new exit (range 16) 101 | -11/Scrapyard | Entered Materials 303 | -10/Materials | Build established: Mutant 336 | -10/Materials | Discovered new exit (range 14) 552 | -10/Materials | Discovered new exit (range 16) 701 | -10/Materials | Derelicts attacked the area 1291 | -10/Materials | Discovered new exit (range 16) 1390 | -10/Materials | Identified exit to Materials 1390 | -10/Materials | Identified exit to Subcaves 1390 | -10/Materials | Learned location of 1 exit from Materials 1429 | -10/Materials | Learned 2 Mines zone layouts 1485 | -10/Materials | Learned location of Mines (-9) 1487 | -10/Materials | Loaded intel: 11 interactive machine locations 1643 | -10/Materials | Entered Mines 1864 | -10/Mines | Learned Materials terminal intel 2105 | -10/Mines | Discovered exit to Materials (range 6) 2145 | -10/Mines | Discovered exit to Subcaves (range 15) 2250 | -10/Mines | Assembled infested the area 2327 | -10/Mines | Core integrity fell below 50% 2344 | -10/Mines | Released all parts (5) 2349 | -10/Mines | Core integrity fell below 20% 2358 | -10/Mines | Destroyed by as-39975 with Assembled Heavy Rifle Last Messages --------------- 02322_ Lgt. Nuclear Core destroyed. 02326_ The unstable cave ceiling collapses. 02326_ Particle Cannon destroyed. 02328_ Lgt. Treads destroyed. 02331_ The unstable cave ceiling collapses. 02334_ Cmb. Airjet melted. 02334_ D-53 Grenadier destroyed. 02335_ Particle Cannon destroyed. 02338_ Overheating: Assault Rifle damaged (-36). 02341_ The unstable cave ceiling collapses. 02344_ Released Particle Cannon. 02344_ Released Ion Engine. 02344_ Released Lrg. Storage Unit. 02344_ Released Hrd. Light Armor Plating. 02344_ Released Assault Rifle. 02345_ The unstable cave ceiling collapses. 02349_ System corrupted: Heat flow error (+150). 02349_ The unstable cave ceiling collapses. 02355_ Acquired 10 matter. 02356_ Overheating: Energy bleed (-17). Map ----- +----------------------------------------------------+ | ?????????????????????????????## ## #?????????### | | ???????????????????????##?????##### #???????????? | | ??????????????????????## ?????????# #???????????? | | ??????????????????????# ????????# #???????????? | | ??????????????????????# ????????# #???????????? | | ??????????????????????? ????????# #???????????? | | ???????????????????????# #???????# #???????????? | | ??????????????????????## ##??#### #???????????? | | ?????????????????????## #??# #???????????? | | ?????????????????????# """ #??# ## #???????????? | | ?????????????????????# """ #### ## #???????????? | | ????????###########??# """ ## #???????????? | | ????????# #??## ## #### #???????????? | | ????????# #???## ## #??# #???????????? | | ##??????# """ """ #????## ### #?## ##??????????? | | ###?????# """ """ #?????###??# #?# ==#??????????? | | ##????# """ """ #??????????# #?# %##?????????? | | #????# #?####?????# ### = ###???????? | | #????# """ """ ### ####?# ## ######??? | | ##???# """ """ ##r ## ## ##?? | | #???# """ """ ####### ### | | ##???# ## r ##????# # | | ##???# ### ##???# | | #???# #?##u #???# | | ###############??# #### #????## # | | ##?####?????# @ ####????????## ## | | ### ###???# *%! #????????# ## | | ! ##?## = ########## # | | % ### ## | | = ! ############## | | ###### * ##????????????# | | ###?????######## ##????????????## | | ##??????????????##a #?????????????# | | #????????????????## #????????????## | | #?????????????????#= ##????????????# | | #?????????????????=% ####??????####???# | | #???????????????? ##????????## ##??## | | ???????????????? ##??????#### ###?#### | | ???????????????? ??????### ##???# | | ??????????????? #??????# ###?# ### | | ??????????????? ##???????# < ### ### #?## | | ?????????????????????????# ###?#### #??# | | ?????????????????????????###???????## #####??## | | ????????????????????????????????????## ##???????? | | ?????????????????????????????????????####????????? | | ?????????????????????????????????????????????????? | | ?????????????????????????????????????????????????? | | ?????????????????????????????????????????????????? | | ?????????????????????????????????????????????????? | | ?????????????????????????????????????????????????? | +----------------------------------------------------+ Best States ------------- Heat Dissipation 25 Energy Generation 14 Energy Capacity 250 Matter Stores 300 Matter Capacity 300 Sight Range 16 Terrain Scan Density 10 Armor Coverage 150 Evasion (%) 50 Recoil Reduction 2 Item Schematics ----------------- None Robot Schematics ------------------ None Fabricated ------------ Nothing Repaired ---------- Nothing Studied --------- None Alien Tech Used ----------------- None Achievements -------------- None Challenges ------------ None Game ------ Seed MultinovaRainbowAutobeam Manual? 0 Play Time 00:11:52 Cumulative 863.3 hours Start 2026.09.15 @ 21:41:59 End 2026.09.15 @ 21:53:47 Sessions 1 Manual Loads 0 Difficulty Rogue Special Mode None Game No. 472 Rogue 472 Adventurer 0 Explorer 0 Win Type - Total 50 Types 22/5/8/2/1/2/6/2/1/1 Lore% 95 Gallery% 90 Achievement% 84 Wizard Run 0 Options --------- Layout 1 ASCII 0 Keyboard 0 Movement Numpad Keybinds 0 Fullscreen 2 Font 24/Smallcaps Map View 50x35 Zoom Use 0% Tactical HUD 1 Map Filters NONE Filters NONE Steam 1 RUN: 58be9a38-3035-438d-974f-402cb3a6c13b